Cogmind - Beta 12 @@@ ROGUE MODE // 2023.04.04 @ 18:19:09 Player: wchar_t Result: Destroyed by YI-UF0 with YI-UF0's Doublenader Performance ------------- Evolutions (0) 0 Regions Visited (2) 400 Robots Destroyed (19) 95 Value Destroyed (587) 587 Prototype IDs (0) 0 Alien Tech Used (0) 0 Bonus (0) 0 TOTAL SCORE: 1082 Bonus ------- None Cogmind --------- Core Integrity 0/250 Matter 272/300 Energy 84/100 System Corruption 0% Temperature Cool (0) Movement Core (450) Ox8 Location -10/Mines Parts ------- > --- POWER (1) -------- (None) > --- PROPULSION (2) --- (None) > --- UTILITY (2) ------ Improved Heat Sink Large Storage Unit > --- WEAPON (2) ------- Improved Light Cannon > --- INVENTORY (15) --- Ion Engine Aluminum Leg Aluminum Leg Aluminum Leg Aluminum Leg Heat Sink High-capacity Storage Unit Beam Cannon Beam Cannon Beam Cannon Beam Cannon Improved Light Cannon Maul Peak State ------------ > --- POWER ------------ Light Nuclear Core > --- PROPULSION ------- Aluminum Leg Aluminum Leg > --- UTILITY ---------- Improved Heat Sink Large Storage Unit > --- WEAPON ----------- Beam Cannon Improved Light Cannon > --- INVENTORY -------- Ion Engine Light Treads Light Treads Aluminum Leg Aluminum Leg Aluminum Leg Aluminum Leg Beam Cannon Beam Cannon Beam Cannon Beam Cannon Improved Light Cannon Improved Light Cannon Improved Light Cannon Maul [Rating: 13] Favorites ----------- Power Light Nuclear Core Engine Light Ion Engine Power Core Light Nuclear Core Propulsion Aluminum Leg Leg Aluminum Leg Utility Large Storage Unit Device Improved Heat Sink Storage Large Storage Unit Weapon Improved Light Cannon Energy Gun Medium Laser Energy Cannon Beam Cannon Ballistic Gun Light Assault Rifle Ballistic Cannon Improved Light Cannon Build | -11 -10 -10 ------- Run | Jun Mat Min Slots Evolved . | . . . Power . | . . . Propulsion . | . . . Utility . | . . . Weapon . | . . . Parts Attached 19 | 7 8 4 Power 2 | 1 1 . Engine 1 | 1 . . Core 1 | . 1 . Reactor . | . . . Propulsion 6 | 2 2 2 Treads . | . . . Leg 6 | 2 2 2 Wheel . | . . . Hover . | . . . Flight . | . . . Utility 3 | 1 2 . Device 1 | . 1 . Storage 2 | 1 1 . Processor . | . . . Hackware . | . . . Protection . | . . . Artifact . | . . . Weapon 8 | 3 3 2 Energy Gun 2 | 2 . . Energy Cannon 2 | . 2 . Ballistic Gun 1 | 1 . . Ballistic Cannon 3 | . 1 2 Launcher . | . . . Special Weapon . | . . . Impact Weapon . | . . . Slashing Weapon . | . . . Piercing Weapon . | . . . Special Melee Weapon . | . . . Unidentified Prototypes . | . . . Parts Lost 7 | . 1 6 Power 2 | . 1 1 Propulsion 2 | . . 2 Utility . | . . . Weapon 3 | . . 3 Highest Loss Streak 5 | . 1 5 To Critical Strikes . | . . . Average Slot Usage (%) 89 | . 89 89 Engine 2 | . 5 . Core 6 | . 8 4 Leg 27 | . 28 27 Device 9 | . 4 14 Storage 14 | . 14 14 Energy Gun 2 | . 4 . Energy Cannon 11 | . 9 13 Ballistic Cannon 13 | . 12 14 Naked Turns . | . . . Heaviest Build 33 | 11 33 33 Greatest Support 20 | 20 20 20 Greatest Overweight (x) 1 | . 1 1 Average Overweight (x) . | . . 1 Largest Inventory Capacity 15 | 8 15 15 Average Capacity 14 | 6 14 15 Most Carried 15 | 4 15 15 Average Carried 13 | 2 12 14 Final Capacity 15 | 8 15 15 Final Carried 15 | 4 15 13 Class Distribution -------------------- 100% | Mutant Dominant Class ---------------- Mutant | -10/Materials Mutant | -10/Mines Resources | -11 -10 -10 ----------- Run | Jun Mat Min Matter Collected 527 | 265 206 56 Remotely . | . . . Salvage Created 507 | . 312 195 Parts 33 | . 23 10 Haulers Intercepted 1 | . 1 . Recyclers Shooed 2 | . 2 . Parts Field Recycled . | . . . Retrieved Matter . | . . . Parts Self-Destructed . | . . . Prevented . | . . . Kills | -11 -10 -10 ------- Run | Jun Mat Min Combat Hostiles Destroyed 15 | . 8 7 Cannons 14 | . 7 7 AOE 1 | . 1 . Classes Destroyed 6 | . 5 1 Worker 1 | . 1 . Builder 1 | . 1 . Hauler 1 | . 1 . Watcher 1 | . 1 . Swarmer 3 | . . 3 Grunt 12 | . 8 4 Best Kill Streak 4 | . 4 3 Combat Bots Only 3 | . 2 3 Max Kills in Single Turn 3 | . 3 1 Gunslinging . | . . . Exploded 1 | . 1 . Melee . | . . . Uniques/NPCs Destroyed . | . . . Combat | -11 -10 -10 -------- Run | Jun Mat Min Damage Taken 1206 | . 403 803 Core 256 | . 69 187 Absorbed by Shields . | . . . Core Remaining (%) 100 | 100 . . Volleys Fired 51 | . 34 17 Largest 2 | . 2 2 Hottest 99 | . 99 99 Shots Fired 87 | . 56 31 Gun 7 | . 7 . Cannon 80 | . 49 31 Launcher . | . . . Special . | . . . Kinetic 51 | . 34 17 Thermal 36 | . 22 14 Explosive . | . . . Electromagnetic . | . . . Robot Hit Streak 6 | . 5 6 Robot Miss Streak 2 | . 2 2 Penetration Max . | . . . Secondary Targets . | . . . Shots Hit Robots 50 | . 31 19 Core Hits 22 | . 11 11 Critical Kills . | . . . Critical Parts Destroyed . | . . . Critical Strikes 3 | . 2 1 Blast 3 | . 2 1 Melee Attacks . | . . . Impact . | . . . Slashing . | . . . Piercing . | . . . Sneak Attacks . | . . . Combat Hostiles . | . . . Follow-up Attacks . | . . . Damage Inflicted 1402 | 3 1010 389 Guns 62 | . 62 . Cannons 901 | . 541 360 Explosions 385 | . 385 . Melee . | . . . Ramming 54 | 3 22 29 Kinetic 551 | . 346 205 Thermal 797 | . 642 155 Explosive . | . . . Electromagnetic . | . . . Impact . | . . . Slashing . | . . . Piercing . | . . . Highest Corruption . | . . . Average Corruption . | . . . Corruption Purged . | . . . Corruption Blocked . | . . . Overload Shots . | . . . Overflow Damage 97 | . 97 . Projectiles . | . . . Explosions 97 | . 97 . Melee . | . . . Knockbacks 6 | . 3 3 Impact . | . . . Kinetic 6 | . 3 3 Secondary . | . . . Self-Inflicted Damage . | . . . Shots . | . . . Rammed . | . . . Targets Rammed 10 | 1 3 6 Kicked 10 | 1 3 6 Crushed . | . . . Highest Temperature 261 | . 261 9 Average Temperature 106 | . 123 4 Received Heat Transfer 276 | . 225 51 Effects 4 | . 4 . Energy Bleed 2 | . 2 . Interference 2 | . 2 . Siege Activations . | . . . Robots Corrupted . | . . . Combat Hostiles . | . . . Parts Fried . | . . . Impact Corruptions . | . . . Robots Melted . | . . . Combat Hostiles . | . . . Parts Melted . | . . . Heat Transferred 1175 | . 842 333 Parts Sabotaged . | . . . Parts Stolen . | . . . Parts Stripped . | . . . Power Chain Reactions . | . . . Missiles Intercepted . | . . . Alert | -11 -10 -10 ------- Run | Jun Mat Min Peak Influence 253 | . 251 253 Initial 77 | . . 77 Average 132 | . 138 141 Maximum Alert Level 1 | . 1 1 Low Security (%) 70 | 100 82 56 Level 1 29 | . 17 43 Level 2 . | . . . Level 3 . | . . . Level 4 . | . . . Level 5 . | . . . High Security . | . . . Max Security . | . . . Squads Dispatched 1 | . 1 . Investigation . | . . . Extermination . | . . . Reinforcement 1 | . 1 . Assault . | . . . Garrison . | . . . Intercept . | . . . Searches Triggered . | . . . Construction Impeded . | . . . Haulers Reinforced . | . . . Active Scanning Responses . | . . . Cargo Convoy Interrupts . | . . . Stealth | -11 -10 -10 --------- Run | Jun Mat Min Distress Signals 3 | . 3 . Communications Jammed . | . . . Distress Signals . | . . . Times Spotted 23 | . 14 9 Peak Tracking Total 3 | . 3 3 Tactical Retreats 2 | . 1 1 Traps | -11 -10 -10 ------- Run | Jun Mat Min Traps Triggered . | . . . Indirectly . | . . . Trap Hack Attempts . | . . . Triggered . | . . . Disarmed . | . . . Reprogrammed . | . . . Reused . | . . . Traps Extracted . | . . . Installed . | . . . Triggered . | . . . Machines | -11 -10 -10 ---------- Run | Jun Mat Min Machines Disabled 6 | . 6 . Max in Single Turn 4 | . 4 . Machines Repaired . | . . . Machines Sabotaged . | . . . Overloaded Fab Kills . | . . . Hacking | -11 -10 -10 --------- Run | Jun Mat Min Machines Accessed . | . . . Terminals . | . . . Fabricators . | . . . Repair Stations . | . . . Recycling Units . | . . . Scanalyzers . | . . . Garrison Access . | . . . Total Hacks . | . . . Successful . | . . . Failed . | . . . Catastrophic . | . . . Database Lockouts . | . . . Manual . | . . . Terminals . | . . . Fabricators . | . . . Repair Stations . | . . . Recycling Units . | . . . Scanalyzers . | . . . Garrison Access . | . . . Terminal Hacks . | . . . Fabricator Hacks . | . . . Repair Station Hacks . | . . . Recycling Unit Hacks . | . . . Scanalyzer . | . . . Garrison Access Hacks . | . . . Unauthorized Hacks . | . . . Terminals . | . . . Fabricators . | . . . Repair Stations . | . . . Recycling Units . | . . . Scanalyzers . | . . . Garrison Access . | . . . Data Cores Recovered . | . . . Used . | . . . Hacking Detections . | . . . Full Trace Events . | . . . Feedback Events . | . . . Feedback Blocked . | . . . Robot Schematics Acquired . | . . . Robots Built . | . . . Authchips . | . . . Time . | . . . Total Robot Build Rating . | . . . Part Schematics Acquired . | . . . Parts Built . | . . . Authchips . | . . . Time . | . . . Total Part Build Rating . | . . . Parts Repaired . | . . . Time . | . . . Parts Recycled . | . . . Recycled Matter . | . . . Retrieved Matter . | . . . Retrieved Components . | . . . Parts Scanalyzed . | . . . Part Schematics Acquired . | . . . Parts Damaged . | . . . Bothacking | -11 -10 -10 ------------ Run | Jun Mat Min Used RIF Installer . | . . . Robots Hacked . | . . . Non-combat . | . . . Combat . | . . . Robot Hacks Applied . | . . . Relay Couplers Released . | . . . Fabnet Peak Effective % . | . . . Robots Rewired . | . . . Allies Hacked . | . . . Hacks Repelled . | . . . Allies | -11 -10 -10 -------- Run | Jun Mat Min Total Allies . | . . . Largest Group . | . . . Highest-Rated Group . | . . . Highest-Rated Ally . | . . . Total Orders . | . . . Ally Attacks . | . . . Total Damage . | . . . Kills . | . . . Allies Corrupted . | . . . Allies Melted . | . . . Intel | -11 -10 -10 ------- Run | Jun Mat Min Robot Analysis Total . | . . . Derelict Logs Recovered 1 | . . 1 Drone Launches . | . . . Drone Recoveries . | . . . Exploration | -11 -10 -10 ------------- Run | Jun Mat Min Turns Passed 1492 | 77 710 705 Spaces Moved 704 | 58 314 332 Core 11 | 11 . . Treads . | . . . Legs 693 | 47 314 332 Wheels . | . . . Hover . | . . . Flight . | . . . Fastest Speed 50 | 50 120 190 Average Speed 179 | 106 182 190 Slowest Speed 190 | 120 190 190 Overloaded Moves . | . . . Propulsion Burnouts . | . . . Robots Hopped . | . . . Cave-ins Triggered . | . . . Exploration Rate (%) 43 | 4 50 77 Regions Visited 2 Branch Regions 1 Pre-discovered Areas . | . . . Known Exits Taken . | . . . Unknown Exits Taken 2 | 1 1 . Scrap Searched 1 | . . 1 Spaces Dug 1 | . 1 . Terrain Destroyed 31 | . 30 1 Melee . | . . . Projectile 4 | . 3 1 AOE 27 | . 27 . Terrain Rammed . | . . . Walls Destroyed . | . . . Machines Disabled . | . . . Actions | -11 -10 -10 --------- Run | Jun Mat Min Total 836 | 69 396 371 Wait 18 | . 10 8 Move 702 | 57 313 332 Hop . | . . . Pick Up 21 | 4 16 1 Fast Attach 10 | 6 4 . Attach 3 | . 1 2 Detach 2 | . 2 . Swap 6 | 1 3 2 Drop 13 | . 10 3 Fire 51 | . 34 17 Melee . | . . . Ram . | . . . Kick 10 | 1 3 6 Crush . | . . . Escape Stasis . | . . . Rewire . | . . . Trap . | . . . Miscellaneous . | . . . Route ------- -11/Junkyard -10/Materials (discovered 3 exits: [*Mat x2] / [*Min]) -10/Mines History --------- Turn | Location | Event 15 | -11/Junkyard | Discovered new exit (range 16) 78 | -11/Junkyard | Entered Materials 111 | -10/Materials | Discovered new exit (range 15) 300 | -10/Materials | Build established: Mutant 455 | -10/Materials | Discovered new exit (range 11) 729 | -10/Materials | Discovered new exit (range 7) 788 | -10/Materials | Entered Mines 1423 | -10/Mines | Learned Materials garrison access intel 1473 | -10/Mines | Core integrity fell below 50% 1488 | -10/Mines | Core integrity fell below 20% 1493 | -10/Mines | Destroyed by YI-UF0 with YI-UF0's Doublenader Last Messages --------------- 01423_ Acquired derelict log, extracted data. Data stored: Materials garrison access intel. 01427_ The unstable cave ceiling collapses. 01427_ Lgt. Ion Engine crushed. 01467_ Imp. Light Cannon destroyed. 01469_ The unstable cave ceiling collapses. 01480_ YI-UF0 knocked back. 01482_ U-05 Engineer builds a Wall. 01483_ Aluminum Leg destroyed. 01485_ Beam Cannon destroyed. 01485_ U-05 Engineer lays Concrete. 01486_ The unstable cave ceiling collapses. 01486_ YI-UF0 knocked back. 01486_ U-05 Engineer builds a Wall. 01487_ YI-UF0 mumbles something. 01487_ Imp. Light Cannon destroyed. 01487_ Aluminum Leg destroyed. 01490_ YI-UF0 mumbles something. 01490_ The unstable cave ceiling collapses. 01491_ U-05 Engineer builds a Wall. Map ----- +----------------------------------------------------+ | ???????????????????????????????????????? | | ???????????????????????????????????????? | | ???????????????????????????????????????? | | ???????????????????????????????????????? | | ??##???????????????????????????????????? | | # ??????????????????????????????????? | | ?????????????????????????????????? | | ?????????????????????????????????? | | #?????????????????????????????????? | | #????????????????????????????????????? | | ##?????????????????????? ?????????????? | | #??####????????????????? ?????????????? | | #### ##???????????????? ?????????????? | | ## #???????????#???? ?????????????? | | ## #?????????? #???? ?????????????? | | #?# ##??????### #???? ?????????????? | | ##??# #?????## #???? ?????????????? | | #??## #?????#= ##??# ####?????????? | | ##?## #######%% ####%#% #?????????? | | #?## !== * ##u# #???? #???? | | ?## =% %= # #g% #??? #???? | | ?# ######## ### #? #???? | | ?# ##???????#### # #???? | | ?# ##??????????## #???? | | ###% #???????????# #????? | | #?##=%[##???????????# @ #???????? | | #??##%##????????????# #???????? | | ##### #????????????# #???????? | | #????????????# ###???????? | | #????????????# ##???????? | | ######????????????# # #???????? | | ##????????????????# # ###??????? | | ##???????????????# # #??????? | | ##??????????????# # #??????? | | #?????????????? ??????? | | #?????????????## ## #?????? | | % ##??????????????# #### #?????? | | ###???????????????#### #?????? | | #????????????????????# | ##?????? | | #?????????????????##### *%! #??????? | | #?????????????????# #??????? | | #?????????????????# """ #??????? | | #?????????????????# =% """ #??????? | | #?????????????????# = """ #??????? | | #?????????????????# #% # #??????? | | #?????????????????###!## #### #?????? | | #???????????????????# #?##???# #???? | | #???????????????????# #???????# #??? | | #???????????????????# #???????? ???? | | #???????????????????# #????????? ##??? | +----------------------------------------------------+ Best States ------------- Heat Dissipation 39 Energy Generation 14 Energy Capacity 160 Matter Stores 300 Matter Capacity 300 Sight Range 16 Terrain Scan Density 10 Evasion (%) 55 Item Schematics ----------------- None Robot Schematics ------------------ None Fabricated ------------ Nothing Alien Tech Used ----------------- None Achievements -------------- None Challenges ------------ None Game ------ Seed PlasmaSmallPenetrator Manual? 0 Play Time 00:08:48 Cumulative 213.5 hours Start 2023.04.04 @ 18:12:31 End 2023.04.04 @ 18:19:09 Sessions 1 Manual Loads 0 Difficulty Rogue Special Mode None Game No. 92 Rogue 76 Adventurer 8 Explorer 8 Win Type - Total 16 Types 10/0/3/1/1/1/0/0/0 Lore% 85 Gallery% 80 Achievement% 73 Wizard Run 0 Options --------- ASCII 1 Keyboard 0 Movement Vi Keybinds 0 Fullscreen 1 Font 18/CogWide Map View 76x50 Tactical HUD 1 Map Filters NONE Filters NONE Steam 0 RUN: 4dba2da5-9132-407e-b5ac-775d9ae46fc3